fUSD/lending_fUSD_20260127
["ID","MTS","AMOUNT","RATE_DAILY","PERIOD"]
[403769953,1769529057969,-496.62,0.000432,90]
[403769954,1769529057979,-1977.54,0.000432,90]
[403769955,1769529057988,-1015.33,0.000432,90]
[403769956,1769529057997,-426.15,0.000432,90]
[403769957,1769529058006,-2129.08,0.000432,90]
[403769958,1769529058017,-400.31,0.000432,90]
[403769959,1769529058026,-1073.93,0.000432,90]
[403769960,1769529058035,-2403.38,0.000432,90]
[403769961,1769529058044,-2454.25,0.000432,90]
[403769962,1769529058054,-151.0,0.00043217,120]
[403769963,1769529058063,-160.271052,0.00043217,120]
[403769964,1769529058073,-151.0,0.00043217,120]
[403769965,1769529058082,-151.0,0.00043221,120]
[403769966,1769529058091,-251.237532,0.00043221,120]
[403769967,1769529058100,-151.0,0.00043221,120]
[403769968,1769529058110,-227.72961,0.00043221,120]
[403769969,1769529058119,-151.0,0.00043221,120]
[403769970,1769529058129,-151.0,0.00043221,120]
[403769971,1769529058137,-151.0,0.00043221,120]
[403769972,1769529058146,-151.0,0.00043221,120]
[403769973,1769529058156,-151.0,0.00043221,120]
[403769974,1769529058164,-151.0,0.00043221,120]
[403769975,1769529058173,-151.0,0.00043221,120]
[403769976,1769529058182,-151.0,0.00043221,120]
[403769977,1769529058191,-151.0,0.00043221,120]
[403769978,1769529058200,-151.0,0.00043221,120]
[403769979,1769529058209,-278.789576,0.00043221,120]
[403769980,1769529058218,-301.90507,0.00043221,120]
[403769981,1769529058227,-301.90507,0.00043221,120]
[403769982,1769529058236,-301.90507,0.00043221,120]
[403769983,1769529058246,-301.90507,0.00043221,120]
[403769984,1769529058255,-301.90507,0.00043221,120]
[403769985,1769529058264,-301.90507,0.00043221,120]
[403769986,1769529058273,-301.90507,0.00043221,120]
[403769987,1769529058282,-301.90506,0.00043221,120]
[403769988,1769529058292,-220.807987,0.00043221,120]
[403769989,1769529058300,-220.807987,0.00043221,120]
[403769990,1769529058309,-220.807987,0.00043221,120]
[403769991,1769529058318,-220.807987,0.00043221,120]
[403769992,1769529058327,-220.807987,0.00043221,120]
[403769993,1769529058336,-220.807987,0.00043221,120]
[403769994,1769529058345,-220.807987,0.00043221,120]
[403769995,1769529058354,-220.807979,0.00043221,120]
[403769996,1769529058364,-1514.384207,0.00043221,28]
[403769997,1769529058373,-1514.384207,0.00043221,28]
[403769998,1769529058382,-151.0,0.00043221,120]
[403769999,1769529058393,-151.0,0.00043221,120]
[403770000,1769529058402,-1514.384207,0.00043221,28]
[403770001,1769529058411,-1514.384207,0.00043221,28]
[403770002,1769529058420,-1514.384207,0.00043221,28]
[403770003,1769529058429,-1514.384207,0.00043221,28]
[403770004,1769529058438,-1514.384207,0.00043221,28]
[403770005,1769529058446,-1514.384211,0.00043221,28]
[403770006,1769529058455,-151.0,0.00043221,120]
[403770007,1769529058464,-187.061035,0.00043221,120]
[403770008,1769529058472,-187.061035,0.00043221,120]
[403770009,1769529058482,-187.061035,0.00043221,120]
[403770010,1769529058491,-187.061035,0.00043221,120]
[403770011,1769529058500,-302.748443,0.00043221,120]
[403770012,1769529058509,-302.748443,0.00043221,120]
[403770013,1769529058519,-302.748443,0.00043221,120]
[403770014,1769529058527,-302.748451,0.00043221,120]
[403770015,1769529058536,-337.76783,0.00043221,7]
[403770016,1769529058546,-337.76783,0.00043221,7]
[403770017,1769529058554,-337.76783,0.00043221,7]
[403770018,1769529058563,-337.76783592,0.00043221,7]
[403770019,1769529058575,-1193.027128,0.00043221,14]
[403770020,1769529058585,-1193.027128,0.00043221,14]
[403770021,1769529058594,-1193.027128,0.00043221,14]
[403770022,1769529058603,-1193.027122,0.00043221,14]
[403770023,1769529058613,-151.0,0.00043221,120]
[403770024,1769529058622,-994.77282687,0.00043221,120]
[403770025,1769529058631,-69014.71899634,0.00043221,2]
[403770026,1769529058640,-2212700.88802644,0.00043221,30]
[403770027,1769529058660,-27336.69674415,0.00043221,30]
[403770028,1769529058671,-1975.67698909,0.00043221,30]
[403770029,1769529058681,-684.03413399,0.00043221,30]
[403770030,1769529058701,-151.0,0.00018,2]
[403770031,1769529058710,-33690.96497514,0.00043221,30]
[403770032,1769529058721,-2418.0,0.00043221,30]
[403770033,1769529058814,-151.0,0.0002079,2]
[403770034,1769529058823,-9572.20360379,0.00043221,30]
[403770035,1769529058834,-4483.84343981,0.00043221,30]
[403770036,1769529058924,-151.0,0.00018,2]
[403770037,1769529058933,-152.222058,0.0002079,2]
[403770038,1769529058944,-151.0,0.00038356,120]
[403770039,1769529058953,-151.0,0.00039266,120]
[403770040,1769529058962,-151.0,0.000394,120]
[403770041,1769529058972,-151.0,0.00043221,120]
[403770042,1769529058981,-4092.7842545,0.00043221,30]
[403770043,1769529058991,-55274.62457742,0.00043221,30]
[403770044,1769529059225,-1475.90934462,0.00015763,2]
[403770045,1769529060117,-6817.40778249,0.00015763,2]
[403770046,1769529060127,-151.0,0.00015784,2]
[403770047,1769529060136,-151.0,0.00015784,2]
[403770048,1769529060145,-2500.0,0.00015977,2]
[403770049,1769529060154,-2027.64002795,0.000179,2]
[403770050,1769529060163,-2027.64002793,0.00022514,2]
[403770051,1769529060173,-150.0,0.00024658,2]
[403770052,1769529060183,-150.0,0.00027123,2]
[403770053,1769529060192,-2027.64002793,0.00027127,2]
[403770054,1769529060202,-150.0,0.00029589,2]
[403770055,1769529060211,-2027.64002793,0.00031741,2]
[403770056,1769529060221,-2027.64002793,0.00036354,2]
[403770057,1769529060231,-613.23,0.00037616,2]
[403770058,1769529060241,-180.02,0.00038438,2]
[403770059,1769529060251,-484.83,0.00038603,2]
[403770060,1769529060261,-172.27,0.00039689,2]
[403770061,1769529060270,-468.85,0.00039689,2]
[403770062,1769529060280,-2027.64002793,0.00040968,2]
[403770063,1769529060290,-157500.50865567,0.00043221,30]
[403770064,1769529060300,-200.0,0.00043292,2]
[403770065,1769529060309,-200.0,0.00043292,2]
[403770066,1769529060319,-200.0,0.00043292,2]
[403770067,1769529060328,-200.0,0.00043292,2]
[403770068,1769529060337,-200.0,0.00043292,2]
[403770069,1769529060347,-200.0,0.00043292,2]
[403770070,1769529060356,-200.0,0.00043292,2]
[403770071,1769529060366,-200.0,0.00043292,2]
[403770072,1769529060376,-200.0,0.00043292,2]
[403770073,1769529060385,-200.0,0.00043292,2]
[403770074,1769529060394,-200.0,0.00043292,2]
[403770075,1769529060404,-200.0,0.00043292,2]
[403770076,1769529060414,-200.0,0.00043292,2]
[403770077,1769529060424,-200.0,0.00043292,2]
[403770078,1769529060434,-200.0,0.00043292,2]
[403770079,1769529060444,-200.0,0.00043292,2]
[403770080,1769529060453,-200.0,0.00043292,2]
[403770081,1769529060462,-200.0,0.00043292,2]
[403770082,1769529060471,-200.0,0.00043292,2]
[403770083,1769529060480,-200.0,0.00043292,2]
[403770084,1769529060489,-200.0,0.00043292,2]
[403770085,1769529060498,-200.0,0.00043292,2]
[403770086,1769529060508,-200.0,0.00043292,2]
[403770087,1769529060517,-200.0,0.00043292,2]
[403770088,1769529060526,-200.0,0.00043292,2]
[403770089,1769529060535,-200.0,0.00043292,2]
[403770090,1769529060544,-200.0,0.00043292,2]
[403770091,1769529060553,-200.0,0.00043292,2]
[403770092,1769529060562,-200.0,0.00043292,2]
[403770093,1769529060574,-200.0,0.00043292,2]
[403770094,1769529060584,-200.0,0.00043292,2]
[403770095,1769529060594,-200.0,0.00043292,2]
[403770096,1769529060603,-200.0,0.00043292,2]
[403770097,1769529060613,-200.0,0.00043292,2]
[403770098,1769529060623,-200.0,0.00043292,2]
[403770099,1769529060633,-200.0,0.00043292,2]
[403770100,1769529060642,-191.0,0.00043292,2]
[403770101,1769529060652,-575.5653864,0.00043297,11]
[403770102,1769529060662,-221.77326386,0.00043298,120]
[403770103,1769529060671,-166802.64584192,0.000433,7]
[403770112,1769529946396,98113.0,0.00015109,2]
[403770121,1769530019163,17888.33,0.00015012,2]
[403770123,1769530046069,5072.18,0.00014956,2]
[403770133,1769530171157,-278.0,0.00015367,2]
[403770134,1769530171180,-195.0,0.00015367,2]
[403770135,1769530171201,-195.0,0.00015367,2]
[403770136,1769530171220,-250.0,0.00015367,2]
[403770137,1769530171241,-300.0,0.00015367,2]
[403770138,1769530171260,-195.0,0.00015367,2]
[403770139,1769530171280,-250.0,0.00015367,2]
[403770140,1769530171301,-500.0,0.00015367,2]
[403770141,1769530171322,-500.0,0.00015367,2]
[403770142,1769530171341,-500.0,0.00015367,2]
[403770143,1769530171362,-1200.0,0.00015396,2]
[403770144,1769530171382,-940.61594,0.00015397,2]
[403770146,1769530231515,-25749.78693389,0.00015396,2]
[403770147,1769530231589,-856.52330817,0.00015396,2]
[403770148,1769530231807,-304.39711702,0.00015396,2]
[403770149,1769530231819,-1630.87669183,0.00015396,2]
[403770150,1769530231848,-444.6509619,0.00015396,2]
[403770151,1769530231915,-332647.38256131,0.00015396,2]
[403770152,1769530231926,-11465.4109055,0.00015396,2]
[403770153,1769530231938,-10249.46633612,0.00015396,2]
[403770154,1769530231948,-88986.56646983,0.00015396,2]
[403770157,1769530237630,-36048.4,0.00015396,2]
[403770158,1769530237643,-25765.672274,0.00015396,2]
[403770159,1769530237676,-465850.86644043,0.00015396,2]
[403770160,1769530237686,-1464.04936,0.00015397,2]
[403770161,1769530237695,-195.0,0.00015397,2]
[403770162,1769530237704,-278.0,0.00015397,2]
[403770163,1769530237713,-282.63810145,0.00015402,2]
[403770164,1769530237723,-167.16497042,0.00015408,2]
[403770165,1769530237732,-195.0,0.00015413,2]
[403770166,1769530237744,-300.0,0.00015432,2]
[403770167,1769530237754,-1200.0,0.00015432,2]
[403770168,1769530237763,-7637.16418738,0.00015433,2]
[403770169,1769530237773,-153.78241323,0.00015433,2]
[403770170,1769530237782,-206.64508848,0.00015433,2]
[403770171,1769530237791,-3445.381,0.00015462,2]
[403770172,1769530237801,-266.969,0.00015462,2]
[403770173,1769530237810,-300.0,0.00015495,2]
[403770174,1769530237819,-500.0,0.00015496,2]
[403770175,1769530237829,-314.70732996,0.00015496,2]
[403770176,1769530237839,-500.0,0.00015496,2]
[403770177,1769530237848,-622.52505508,0.00015496,2]
[403770178,1769530237857,-500.0,0.00015496,2]
[403770179,1769530237868,-500.0,0.00015496,2]
[403770180,1769530237878,-500.0,0.00015496,2]
[403770181,1769530237887,-500.0,0.00015496,2]
[403770182,1769530237896,-194.0896526,0.00015496,2]
[403770183,1769530237906,-500.0,0.00015496,2]
[403770184,1769530237916,-456.38572351,0.00015496,2]
[403770185,1769530237925,-499.99999999,0.00015496,2]
[403770186,1769530237935,-500.0,0.00015496,2]
[403770187,1769530237945,-500.0,0.00015496,2]
[403770188,1769530237955,-500.0,0.00015496,2]
[403770189,1769530237964,-500.0,0.00015496,2]
[403770190,1769530237974,-500.0,0.00015496,2]
[403770191,1769530237986,-500.0,0.00015496,2]
[403770192,1769530237997,-500.0,0.00015496,2]
[403770194,1769530238006,-500.0,0.00015496,2]
[403770196,1769530238016,-500.0,0.00015496,2]
[403770198,1769530238026,-500.0,0.00015496,2]
[403770200,1769530238036,-500.0,0.00015496,2]
[403770202,1769530238046,-500.0,0.00015496,2]
[403770204,1769530238057,-500.0,0.00015496,2]
[403770206,1769530238068,-500.0,0.00015496,2]
[403770208,1769530238077,-500.0,0.00015496,2]
[403770210,1769530238087,-500.0,0.00015496,2]
[403770212,1769530238097,-150.00150033,0.0001555,2]
[403770213,1769530238107,-151.0,0.00015717,2]
[403770214,1769530238117,-151.0,0.00015717,2]
[403770215,1769530238127,-151.0,0.0001574,2]
[403770216,1769530238137,-151.0,0.0001574,2]
[403770217,1769530238148,-151.0,0.0001574,2]
[403770218,1769530238159,-151.0,0.00015747,2]
[403770219,1769530238173,-151.0,0.00015747,2]
[403770220,1769530238182,-500.0,0.0001577,2]
[403770221,1769530238192,-500.0,0.00016044,2]
[403770222,1769530238201,-500.0,0.00016076,2]
[403770223,1769530238210,-500.0,0.00016076,2]
[403770224,1769530238220,-500.0,0.00016076,2]
[403770225,1769530238230,-500.0,0.00016076,2]
[403770226,1769530238242,-500.0,0.00016076,2]
[403770227,1769530238252,-540.53985067,0.00016076,2]
[403770228,1769530238261,-500.0,0.00016076,2]
[403770229,1769530238271,-500.0,0.00016076,2]
[403770230,1769530238281,-513.00406086,0.00016076,2]
[403770231,1769530238290,-500.0,0.00016076,2]
[403770232,1769530238300,-500.0,0.00016076,2]
[403770233,1769530238310,-500.0,0.00016076,2]
[403770234,1769530238320,-500.0,0.00016076,2]
[403770235,1769530238330,-500.0,0.00016076,2]
[403770236,1769530238339,-419.35852263,0.00016076,2]
[403770237,1769530238349,-500.0,0.00016076,2]
[403770238,1769530238359,-500.0,0.00016076,2]
[403770239,1769530238369,-500.0,0.00016076,2]
[403770240,1769530238379,-500.0,0.00016076,2]
[403770241,1769530238389,-500.0,0.00016076,2]
[403770242,1769530238399,-500.0,0.00016076,2]
[403770243,1769530238410,-500.0,0.00016076,2]
[403770244,1769530238419,-500.0,0.00016076,2]
[403770245,1769530238429,-49335.41783957,0.00016093,2]
[403770246,1769530238438,-1967.0,0.00016155,2]
[403770247,1769530238448,-215.0,0.00016157,2]
[403770248,1769530238458,-202.0,0.00016166,2]
[403770249,1769530238468,-570.0,0.00016187,2]
[403770250,1769530238479,-277.0,0.00016199,2]
[403770251,1769530238491,-227.0,0.00016216,2]
[403770252,1769530238501,-442.0,0.00016249,2]
[403770253,1769530238511,-158.0,0.00016281,2]
[403770254,1769530238520,-1339.0,0.00016351,2]
[403770255,1769530238530,-1869.0,0.00016383,2]
[403770256,1769530238539,-1178.0,0.00016416,2]
[403770257,1769530238548,-500.0,0.00016438,2]
[403770258,1769530238558,-500.0,0.00016438,2]
[403770259,1769530238568,-500.0,0.00016438,2]
[403770260,1769530238578,-263.29364998,0.00016438,2]
[403770261,1769530238587,-500.0,0.00016438,2]
[403770262,1769530238597,-500.0,0.00016438,2]
[403770263,1769530238607,-500.0,0.00016438,2]
[403770264,1769530238617,-500.0,0.00016438,2]
[403770265,1769530238626,-500.0,0.00016438,2]
[403770266,1769530238636,-500.0,0.00016438,2]
[403770267,1769530238646,-239.0,0.00016465,2]
[403770268,1769530238655,-300.0,0.00016904,2]
[403770269,1769530238665,-250.0,0.00016904,2]
[403770270,1769530238674,-195.0,0.00016904,2]
[403770271,1769530238683,-201.18477612,0.00016904,2]
[403770272,1769530238692,-195.0,0.00016904,2]
[403770273,1769530238703,-150.00150033,0.00016915,2]
[403770274,1769530238712,-250.0,0.00016937,2]
[403770275,1769530238721,-200.0,0.00016937,2]
[403770276,1769530238731,-195.0,0.00016937,2]
[403770277,1769530238743,-1680.0,0.00016967,2]
[403770278,1769530238754,-269.78299342,0.00016977,2]
[403770279,1769530238764,-250.0,0.00017,2]
[403770280,1769530238773,-520.0,0.00018,2]
[403770281,1769530238783,-150.00150033,0.00018281,3]
[403770282,1769530238792,-7637.16418732,0.00018531,2]
[403770283,1769530238802,-300.0,0.00019,2]
[403770284,1769530238812,-445.0,0.00019178,4]
[403770285,1769530238822,-9999.99,0.00019339,2]
[403770286,1769530238831,-150.99,0.00019339,2]
[403770287,1769530238842,-9999.99,0.00019339,2]
[403770288,1769530238852,-332.05,0.00019563,2]
[403770289,1769530238861,-150.00150033,0.00019647,8]
[403770290,1769530238871,-500.0,0.00020329,2]
[403770291,1769530238881,-500.0,0.00020329,2]
[403770292,1769530238890,-150.0,0.00020329,2]
[403770293,1769530238900,-251.51442999,0.00020345,2]
[403770294,1769530238910,-500.0,0.00020384,2]
[403770295,1769530238920,-500.0,0.00020384,2]
[403770296,1769530238929,-500.0,0.00020439,2]
[403770297,1769530238939,-500.0,0.00020439,2]
[403770298,1769530238949,-500.0,0.00020493,2]
[403770299,1769530238959,-500.0,0.00020493,2]
[403770300,1769530238968,-500.0,0.00020548,2]
[403770301,1769530238979,-500.0,0.00020548,2]
[403770302,1769530238991,-500.0,0.00020603,2]
[403770303,1769530239001,-500.0,0.00020603,2]
[403770304,1769530239011,-500.0,0.00020658,2]
[403770305,1769530239020,-247.34853095,0.00020658,2]
[403770306,1769530239030,-500.0,0.00020713,2]
[403770307,1769530239039,-500.0,0.00020767,2]
[403770308,1769530239048,-500.0,0.00020822,2]
[403770309,1769530239059,-500.0,0.00020877,2]
[403770310,1769530239068,-500.0,0.00020932,2]
[403770311,1769530239078,-500.0,0.00020987,2]
[403770312,1769530239088,-150.00150033,0.00021012,12]
[403770313,1769530239098,-500.0,0.00021041,2]
[403770314,1769530239108,-500.0,0.00021096,2]
[403770315,1769530239117,-500.0,0.00021151,2]
[403770316,1769530239127,-500.0,0.00021206,2]
[403770317,1769530239136,-345.30545963,0.00021261,2]
[403770318,1769530239150,-7637.16418732,0.00021628,2]
[403770319,1769530239160,-5000.0,0.00021918,2]
[403770320,1769530239169,-252.26255728,0.00021973,2]
[403770321,1769530239179,-500.0,0.00021973,2]
[403770322,1769530239189,-210.105,0.00021973,2]
[403770323,1769530239198,-500.0,0.00021973,2]
[403770324,1769530239208,-710.73,0.00022,7]
[403770325,1769530239217,-1000.0,0.00022521,2]
[403770326,1769530239226,-1000.0,0.00022521,2]
[403770327,1769530239239,-520.0,0.00022769,6]
[403770328,1769530239249,-483.49053996,0.00023068,2]
[403770329,1769530239259,-150.00150033,0.00023743,21]
[403770330,1769530239269,-370.3227898,0.00023843,2]
[403770331,1769530239279,-2531.6,0.00023943,2]
[403770332,1769530239289,-150.0,0.00024025,2]
[403770333,1769530239299,-150.0,0.00024025,120]
[403770334,1769530239309,-150.0,0.00024658,2]
[403770335,1769530239322,-7637.16418732,0.00024726,2]
[403770336,1769530239332,-150.00150033,0.00025109,26]
[403770337,1769530239342,-6374.0,0.00025367,2]
[403770338,1769530239352,-150.00150033,0.00026475,30]
[403770339,1769530239362,-150.0,0.00027123,2]
[403770340,1769530239372,-520.0,0.00027538,10]
[403770341,1769530239382,-7637.16418732,0.00027824,2]
[403770342,1769530239392,-150.00150033,0.0002784,34]
[403770343,1769530239402,-2000.0,0.000285,2]
[403770344,1769530239411,-206.64508846,0.00028564,2]
[403770345,1769530239421,-150.00150033,0.00029206,38]
[403770346,1769530239430,-150.0,0.00029589,2]
[403770347,1769530239440,-2442.0,0.00030001,2]
[403770348,1769530239450,-6570.0,0.00030001,2]
[403770349,1769530239460,-150.00150033,0.00030572,42]
[403770350,1769530239471,-7637.16418732,0.00030921,2]
[403770351,1769530239480,-150.00150033,0.00031937,46]
[403770352,1769530239494,-151.0,0.0003203,2]
[403770353,1769530239504,-150.0,0.00032055,2]
[403770354,1769530239514,-2000.0,0.000322,2]
[403770355,1769530239524,-520.0,0.00032308,15]
[403770356,1769530239534,-3473.0,0.00032795,2]
[403770357,1769530239543,-1333.0,0.00032795,2]
[403770358,1769530239553,-615.0,0.00032795,2]
[403770359,1769530239562,-1204.0,0.00032795,2]
[403770360,1769530239572,-916.0,0.00032795,2]
[403770361,1769530239581,-468.95747295,0.00032877,7]
[403770363,1769530239600,-157.16,0.000329,14]
[403770364,1769530239610,-150.0,0.00033,14]
[403770365,1769530239621,-2442.0,0.00033001,2]
[403770366,1769530239634,-6570.0,0.00033001,2]
[403770367,1769530239645,-150.00150033,0.00033303,49]
[403770368,1769530239657,-233.32,0.00034012,2]
[403770369,1769530239672,-7637.16418732,0.00034019,2]
[403770370,1769530239685,-151.0,0.00034299,5]
[403770371,1769530239697,-150.0,0.00034521,2]
[403770372,1769530239709,-150.00150043,0.00034668,53]
[403770373,1769530239720,-1333.0,0.00035795,2]
[403770374,1769530239732,-615.0,0.00035795,2]
[403770375,1769530239746,-1203.53,0.00035795,2]
[403770376,1769530239756,-916.0,0.00035795,2]
[403770377,1769530239767,-2000.0,0.000359,2]
[403770378,1769530239778,-2442.0,0.00036001,2]
[403770379,1769530239790,-161.74696912,0.00036034,57]
[403770380,1769530239802,-710.73,0.000363,14]
[403770381,1769530239813,-151.0,0.00036569,7]
[403770382,1769530239824,-150.0,0.00036986,2]
[403770383,1769530239835,-520.0,0.00037077,19]
[403770384,1769530239846,-7637.16418732,0.00037117,2]
[403770385,1769530239858,-161.74696912,0.000374,61]
[403770386,1769530239869,-161.74696912,0.00038765,65]
[403770387,1769530239880,-1333.0,0.00038795,2]
[403770388,1769530239892,-615.0,0.00038795,2]
[403770389,1769530239904,-916.0,0.00038795,2]
[403770390,1769530239916,-600.0,0.0003881,30]
[403770391,1769530239927,-151.0,0.00038839,30]
[403770392,1769530239939,-439.165,0.00039001,2]
[403770393,1769530239952,-300.0,0.00039068,2]
[403770394,1769530239963,-3445.381,0.00039096,53]
[403770395,1769530239973,-266.969,0.00039096,53]
[403770396,1769530239983,-150.0,0.00039452,2]
[403770397,1769530239995,-500.0,0.00039599,120]
[403770398,1769530240005,-506.2,0.00039599,30]
[403770399,1769530240015,-2000.0,0.000396,2]
[403770400,1769530240027,-153.0,0.0004,120]
[403770401,1769530240038,-152.0,0.0004,120]
[403770402,1769530240049,-190.0,0.0004,120]
[403770403,1769530240060,-161.74696912,0.00040131,68]
[403770404,1769530240071,-7637.16418732,0.00040214,15]
[403770405,1769530240083,-1361.2,0.00040581,120]
[403770406,1769530240096,-152.0,0.000406,120]
[403770407,1769530240107,-153.0,0.000407,120]
[403770408,1769530240118,-185.63,0.00041107,30]
[403770409,1769530240129,-151.0,0.00041108,120]
[403770410,1769530240140,-1361.2,0.00041226,120]
[403770411,1769530240156,-152.0,0.000413,120]
[403770412,1769530240166,-161.74696912,0.00041496,72]
[403770413,1769530240177,-153.0,0.000415,120]
[403770414,1769530240188,-400.0,0.00041542,2]
[403770415,1769530240198,-710.73,0.000416,14]
[403770416,1769530240209,-206.64508846,0.00041695,17]
[403770417,1769530240220,-1333.0,0.00041795,2]
[403770418,1769530240233,-615.0,0.00041795,2]
[403770419,1769530240246,-916.0,0.00041795,2]
[403770420,1769530240257,-520.0,0.00041846,24]
[403770422,1769530240269,-1361.2,0.00041871,120]
[403770423,1769530240281,-152.0,0.000419,120]
[403770424,1769530240292,-150.0,0.00041918,120]
[403770425,1769530240302,-150.0,0.00041953,120]
[403770426,1769530240313,-500.0,0.00042,120]
[403770427,1769530240324,-1755.96295981,0.00042077,7]
[403770428,1769530240335,-153.0,0.000422,120]
[403770429,1769530240346,-152.0,0.000425,120]
[403770430,1769530240357,-500.0,0.000425,120]
[403770431,1769530240368,-1361.2,0.00042516,120]
[403770432,1769530240379,-150.0,0.00042779,120]
[403770433,1769530240389,-563.66796,0.0004286,120]
[403770434,1769530240400,-563.66796,0.0004286,120]
[403770435,1769530240410,-563.66796,0.0004286,120]
[403770436,1769530240421,-563.66796,0.0004286,120]
[403770437,1769530240431,-563.66796,0.0004286,120]
[403770438,1769530240442,-161.74696912,0.00042862,89]
[403770439,1769530240453,-153.0,0.00043,120]
[403770440,1769530240465,-499.9,0.00043,120]
[403770441,1769530240476,-500.0,0.00043,120]
[403770442,1769530240491,-1362.32301499,0.0004305,120]
[403770443,1769530240506,-152.0,0.000431,120]
[403770444,1769530240519,-1361.2,0.00043161,120]
[403770445,1769530240531,-563.66796,0.00043292,120]
[403770446,1769530240544,-1266.0,0.00043298,120]
[403770447,1769530240555,-1266.0,0.00043298,120]
[403770448,1769530240568,-1266.0,0.00043298,120]
[403770449,1769530240578,-1266.0,0.00043298,120]
[403770450,1769530240588,-1266.0,0.00043298,120]
[403770451,1769530240602,-1266.0,0.00043298,120]
[403770452,1769530240612,-533.0,0.00043298,120]
[403770453,1769530240622,-500.0,0.00043298,120]
[403770454,1769530240633,-500.0,0.00043298,120]
[403770455,1769530240643,-500.0,0.00043298,120]
[403770456,1769530240653,-500.0,0.00043298,120]
[403770457,1769530240664,-500.0,0.00043298,120]
[403770458,1769530240676,-500.0,0.00043298,120]
[403770459,1769530240687,-500.0,0.00043298,120]
[403770460,1769530240699,-500.0,0.00043298,120]
[403770461,1769530240709,-500.0,0.00043298,120]
[403770462,1769530240719,-500.0,0.00043298,120]
[403770463,1769530240730,-500.0,0.00043298,120]
[403770464,1769530240742,-500.0,0.00043298,120]
[403770465,1769530240752,-500.0,0.00043298,120]
[403770466,1769530240762,-500.0,0.00043298,120]
[403770467,1769530240772,-500.0,0.00043298,120]
[403770468,1769530240782,-500.0,0.00043298,120]
[403770469,1769530240793,-500.0,0.00043298,120]
[403770470,1769530240804,-500.0,0.00043298,120]
[403770471,1769530240816,-500.0,0.00043298,120]
[403770472,1769530240826,-500.0,0.00043298,120]
[403770473,1769530240840,-500.0,0.00043298,120]
[403770474,1769530240851,-500.0,0.00043298,120]
[403770475,1769530240861,-500.0,0.00043298,120]
[403770476,1769530240871,-500.0,0.00043298,120]
[403770477,1769530240881,-500.0,0.00043298,120]
[403770478,1769530240891,-500.0,0.00043298,120]
[403770479,1769530240902,-500.0,0.00043298,120]
[403770480,1769530240912,-500.0,0.00043298,120]
[403770481,1769530240922,-500.0,0.00043298,120]
[403770482,1769530240932,-500.0,0.00043298,120]
[403770483,1769530240943,-500.0,0.00043298,120]
[403770484,1769530240953,-500.0,0.00043298,120]
[403770485,1769530240963,-799.0,0.00043298,120]
[403770486,1769530240974,-151.0,0.00043299,7]
[403770487,1769530240987,-151.0,0.00043299,7]
[403770488,1769530240999,-151.0,0.00043299,7]
[403770489,1769530241009,-151.0,0.00043299,7]
[403770490,1769530241020,-209.40437684,0.00043299,7]
[403770491,1769530241031,-151.0,0.00043299,7]
[403770492,1769530241041,-217.15233878,0.00043299,7]
[403770493,1769530241051,-225.18697532,0.00043299,7]